bitfinex/quotes_SOLUSD_20220311
["timestamp","ask_amount","ask_price","bid_price","bid_amount"]
[1647027493355,18.6058,80.67,80.622,23.3138]
[1647027493554,18.6058,80.67,80.624,47.35913567]
[1647027493752,6.199,80.697,80.624,47.35913567]
[1647027493952,24.9376,80.698,80.625,74.0]
[1647027494351,24.9376,80.698,80.625,77.04447957]
[1647027494553,24.9376,80.698,80.627,79.74775808]
[1647027494755,7.0,80.706,80.633,74.0]
[1647027494952,23.2729,80.719,80.633,74.0]
[1647027495155,23.2729,80.719,80.635,74.0]
[1647027495354,23.2729,80.719,80.643,74.0]
[1647027495554,6.76430987,80.718,80.643,74.0]
[1647027495755,6.76430987,80.718,80.651,74.0]
[1647027496055,23.2729,80.719,80.653,74.0]
[1647027496856,18.5935,80.71,80.652,84.61372522]
[1647027499660,16.0935,80.71,80.652,84.61372522]
[1647027500759,6.197,80.709,80.652,84.61372522]
[1647027501262,18.5956,80.7,80.652,84.61372522]
[1647027502060,18.5956,80.7,80.652,22.7311]
[1647027502261,18.5956,80.7,80.636,23.3918]
[1647027502663,18.6012,80.68,80.625,24.2544]
[1647027511593,18.606,80.67,80.625,24.2544]
[1647027511794,18.606,80.67,80.614,6.46612521]
[1647027512195,123.3,80.669,80.614,6.46612521]
[1647027512393,123.3,80.669,80.597,24.5296]
[1647027512594,18.6087,80.66,80.597,24.5296]
[1647027512796,18.6087,80.66,80.609,6.465789]
[1647027513000,18.6087,80.66,80.597,24.5296]
[1647027514401,18.6099,80.65,80.597,24.5296]
[1647027517010,123.3,80.649,80.591,6.46595321]
[1647027517210,18.6135,80.64,80.564,34.32050222]
[1647027517408,18.6135,80.64,80.579,6.46598989]
[1647027517807,18.6135,80.64,80.58,54.71834658]
[1647027518808,6.202,80.639,80.58,54.71834658]
[1647027519010,18.6116,80.63,80.58,54.71834658]
[1647027521108,18.6098,80.64,80.58,73.32854658]
[1647027521309,6.202,80.639,80.58,73.32854658]
[1647027521531,18.6098,80.64,80.58,73.32854658]
[1647027521735,23.0527,80.648,80.58,73.32854658]
[1647027522033,6.202,80.657,80.58,73.32854658]
[1647027522034,6.202,80.658,80.581,101.1286343]
[1647027522233,30.3383,80.669,80.582,24.4107]
[1647027522434,30.3383,80.669,80.582,51.5393343]
[1647027522637,30.3383,80.669,80.583,3.04447957]
[1647027522834,24.1383,80.658,80.583,3.04447957]
[1647027523038,6.2,80.657,80.583,3.04447957]
[1647027523235,18.6072,80.65,80.59,18.6063]
[1647027523435,6.2,80.649,80.59,18.6063]
[1647027524035,6.2,80.657,80.59,18.6063]
[1647027524838,6.2,80.657,80.583,7.07058083]
[1647027525044,18.6094,80.64,80.583,7.07058083]
[1647027526340,25.5794,80.64,80.583,7.07058083]
[1647027529940,6.202,80.639,80.583,7.07058083]
[1647027530140,18.6121,80.63,80.583,7.07058083]
[1647027531643,129.502,80.629,80.583,7.07058083]
[1647027531844,18.6195,80.62,80.58,7.07058083]
[1647027532244,6.203,80.619,80.58,7.07058083]
[1647027532645,123.3,80.627,80.58,7.07058083]
[1647027532845,18.6184,80.61,80.58,7.07058083]
[1647027534947,18.6184,80.61,80.56,7.07058083]
[1647027537049,18.6142,80.62,80.56,7.07058083]
[1647027537649,18.6142,80.62,80.561,24.08415473]
[1647027538051,6.204,80.619,80.561,24.08415473]
[1647027539050,6.204,80.619,80.562,24.3947]
[1647027539349,18.6142,80.62,80.563,74.0]
[1647027539550,6.204,80.639,80.571,74.0]
[1647027539854,6.203,80.649,80.573,78.87767839]
[1647027540052,6.203,80.649,80.575,74.0]
[1647027540650,41.643,80.65,80.591,62.91927626]
[1647027540851,41.643,80.65,80.592,23.675]
[1647027541155,41.643,80.65,80.592,26.71947957]
[1647027541351,41.643,80.65,80.593,3.04447957]
[1647027544056,6.2,80.649,80.593,3.04447957]
[1647027544256,6.2,80.649,80.594,7.07058083]
[1647027544662,41.643,80.65,80.594,7.07058083]
[1647027545761,23.0348,80.65,80.6,18.6053]
[1647027545960,6.2,80.675,80.6,18.6053]
[1647027546166,29.8339,80.681,80.601,26.74787957]
[1647027546562,29.8339,80.681,80.602,3.04447957]
[1647027546761,29.8339,80.681,80.602,26.20237957]
[1647027547160,18.6023,80.67,80.61,18.6023]
[1647027547362,18.6023,80.67,80.611,57.34629137]
[1647027547567,18.6023,80.67,80.611,60.39077094]
[1647027547792,18.6023,80.67,80.612,3.04447957]
[1647027547964,18.6023,80.67,80.613,22.8211]
[1647027548364,18.6023,80.67,80.614,3.04447957]
[1647027550665,18.6023,80.67,80.615,7.07058083]
[1647027553767,18.6023,80.67,80.614,7.07058083]
[1647027556869,6.2,80.669,80.614,7.07058083]
[1647027557068,18.6067,80.66,80.614,7.07058083]
[1647027558471,24.5667,80.66,80.614,7.07058083]
[1647027560071,18.6067,80.66,80.614,7.07058083]
[1647027561774,24.7867,80.66,80.614,7.07058083]
[1647027564875,6.2,80.659,80.614,7.07058083]
[1647027565174,18.613,80.65,80.602,30.45828083]
[1647027566277,18.613,80.65,80.602,7.07058083]
[1647027566476,18.6136,80.64,80.602,7.07058083]
[1647027566675,43.6336,80.64,80.602,7.07058083]
[1647027567276,123.3,80.639,80.602,7.07058083]
[1647027567576,123.3,80.629,80.602,0.07696866]
[1647027568178,123.3,80.629,80.572,0.07696866]
[1647027568578,123.3,80.627,80.572,0.07696866]
[1647027568778,6.203,80.629,80.572,0.07696866]
[1647027569078,18.6182,80.62,80.572,0.07696866]
[1647027569277,23.4982,80.62,80.572,0.07696866]
[1647027570787,18.6182,80.62,80.572,0.07696866]
[1647027572889,18.6182,80.62,80.572,3.12144823]
[1647027573085,6.203,80.638,80.572,3.12144823]
[1647027573284,6.203,80.638,80.573,24.3319]
[1647027573684,24.4572,80.639,80.574,3.12144823]
[1647027573886,24.4572,80.639,80.58,18.61]
[1647027574084,24.4572,80.639,80.581,47.37164857]
[1647027574284,24.4572,80.639,80.581,50.41612814]
[1647027574584,24.4572,80.639,80.582,3.04447957]
[1647027575186,18.6117,80.63,80.583,24.1173]
[1647027576987,18.6117,80.63,80.584,0.07696866]
[1647027578913,18.6101,80.64,80.584,0.07696866]
[1647027579315,24.3592,80.659,80.59,18.6077]
[1647027579513,3.36433588,80.68,80.591,74.0]
[1647027579514,6.2,80.658,80.591,74.0]
[1647027579713,30.5592,80.671,80.593,74.0]
[1647027579923,30.5592,80.671,80.595,74.0]
[1647027580315,30.5592,80.671,80.596,3.04447957]
[1647027580618,30.5592,80.671,80.597,24.08415473]
[1647027581013,30.5592,80.671,80.598,3.04447957]
[1647027581317,30.5592,80.671,80.611,61.01632005]
[1647027581318,18.604,80.67,80.611,61.01632005]
[1647027581514,6.2,80.669,80.612,23.0269]
[1647027582015,24.3592,80.671,80.613,3.04447957]
[1647027582216,24.3592,80.671,80.62,18.601]
[1647027582615,6.199,80.679,80.62,18.601]
[1647027583217,6.199,80.679,80.621,0.07696866]
[1647027584420,18.6023,80.67,80.621,0.07696866]
[1647027586221,18.6023,80.67,80.613,58.20283061]
[1647027586421,18.6023,80.67,80.614,0.07696866]
[1647027587022,18.6065,80.66,80.614,0.07696866]
[1647027588823,18.6032,80.67,80.614,0.07696866]
[1647027590025,18.6032,80.67,80.613,0.07696866]
[1647027591425,6.2,80.669,80.613,0.07696866]
[1647027592226,18.6049,80.66,80.613,0.07696866]
[1647027606742,143.58407526,80.66,80.613,0.07696866]
[1647027606941,1.67917526,80.658,80.613,0.07696866]
[1647027607140,18.6103,80.65,80.613,0.07696866]
[1647027607741,141.9103,80.65,80.613,0.07696866]
[1647027607945,6.2,80.649,80.613,0.07696866]
[1647027608142,1.67917526,80.645,80.6,0.07696866]
[1647027608344,18.6125,80.64,80.6,0.07696866]
[1647027611449,141.9125,80.64,80.584,24.1177]
[1647027611673,165.9945,80.64,80.585,0.07696866]
[1647027612475,42.6945,80.64,80.585,0.07696866]
[1647027613573,36.4925,80.64,80.585,0.07696866]
[1647027613779,118.35588955,80.63,80.585,0.07696866]
[1647027613975,136.96928955,80.63,80.585,0.07696866]
[1647027616383,260.26928955,80.63,80.585,0.07696866]
[1647027616578,123.3,80.628,80.585,0.07696866]
[1647027616878,141.9188,80.62,80.573,0.07696866]
[1647027617181,148.6788,80.62,80.573,0.07696866]
[1647027617379,123.3,80.618,80.573,0.07696866]
[1647027617779,141.9204,80.61,80.573,0.07696866]
[1647027618178,6.204,80.609,80.573,0.07696866]
[1647027618982,24.64,80.62,80.573,0.07696866]
[1647027618983,18.6204,80.6,80.573,0.07696866]
[1647027619180,24.0004,80.6,80.573,0.07696866]
[1647027619987,24.0004,80.6,80.566,0.07696866]
[1647027621191,147.3004,80.6,80.566,0.07696866]
[1647027621790,165.1804,80.6,80.566,0.07696866]
[1647027621989,123.3,80.598,80.566,0.07696866]
[1647027622188,141.9247,80.59,80.566,0.07696866]
[1647027623191,141.9247,80.59,80.54,0.07696866]
[1647027623591,18.6247,80.59,80.54,0.07696866]
[1647027625195,141.9247,80.59,80.54,0.07696866]
[1647027625398,123.3,80.579,80.54,0.07696866]
[1647027625597,123.3,80.577,80.54,0.07696866]
[1647027625796,123.3,80.575,80.54,0.07696866]
[1647027626199,123.3,80.573,80.54,0.07696866]
[1647027626398,123.3,80.569,80.516,0.07696866]
[1647027626613,123.3,80.567,80.516,0.07696866]
[1647027626804,123.3,80.565,80.516,0.07696866]
[1647027627401,123.3,80.563,80.516,0.07696866]
[1647027627601,123.3,80.561,80.516,0.07696866]
[1647027627802,141.932,80.56,80.516,0.07696866]
[1647027629409,141.932,80.56,80.499,0.07696866]
[1647027630324,141.932,80.56,80.5,18.6294]
[1647027630528,18.632,80.56,80.5,18.6294]
[1647027631030,18.632,80.56,80.501,30.29215473]
[1647027631433,18.632,80.56,80.502,24.08415473]
[1647027631631,18.632,80.56,80.503,6.208]
[1647027632437,18.632,80.56,80.504,0.07696866]
[1647027632633,18.632,80.56,80.505,6.208]
[1647027635735,18.632,80.56,80.506,0.07696866]
[1647027637838,22.5355,80.569,80.506,0.07696866]
[1647027638236,6.208,80.568,80.51,18.6275]
[1647027638638,6.208,80.568,80.511,24.3939]
[1647027639037,6.208,80.568,80.511,24.47086866]
[1647027640138,18.6277,80.56,80.511,24.47086866]
[1647027652679,18.6259,80.57,80.511,24.47086866]
[1647027652879,1.67917526,80.577,80.511,24.47086866]
[1647027653079,1.67917526,80.586,80.511,24.47086866]
[1647027653279,23.8456,80.589,80.512,22.9845]
[1647027653280,6.207,80.585,80.512,22.9845]
[1647027653480,6.207,80.586,80.512,22.9845]
[1647027653680,7.88617526,80.586,80.52,18.6246]
[1647027653883,7.88617526,80.586,80.521,24.7189]
[1647027654380,6.207,80.586,80.521,24.7189]
[1647027654580,1.67917526,80.585,80.521,24.7189]
[1647027654780,6.207,80.584,80.521,24.7189]
[1647027655084,18.6235,80.58,80.521,24.7189]
[1647027655282,6.207,80.579,80.521,24.7189]
[1647027655479,6.207,80.583,80.521,24.7189]
[1647027656181,18.6256,80.57,80.521,24.7189]
[1647027656781,18.6256,80.57,80.522,0.07696866]
[1647027657782,18.6238,80.58,80.522,0.07696866]
[1647027658385,18.6238,80.58,80.53,18.6229]
[1647027658585,18.6238,80.58,80.531,23.9553]
[1647027660486,18.6238,80.58,80.532,0.07696866]
[1647027661087,6.206,80.579,80.532,0.07696866]
[1647027661288,18.6261,80.57,80.532,0.07696866]
[1647027672294,18.6237,80.58,80.532,0.07696866]
[1647027672497,6.206,80.579,80.532,0.07696866]
[1647027674298,18.6253,80.57,80.532,0.07696866]
[1647027675424,6.207,80.584,80.532,0.07696866]
[1647027675635,23.8456,80.589,80.532,0.07696866]
[1647027677826,147.1456,80.589,80.532,0.07696866]
[1647027678025,18.6232,80.58,80.532,0.07696866]
[1647027682632,18.6274,80.57,80.532,0.07696866]
[1647027684234,18.6359,80.55,80.497,18.3962]
[1647027684432,24.8359,80.55,80.506,23.5472]
[1647027684635,127.37945796,80.55,80.506,23.5472]
[1647027685234,123.3,80.549,80.506,23.5472]
[1647027685437,18.6365,80.54,80.506,23.5472]
[1647027686237,18.6365,80.54,80.5,6.47611627]
[1647027686437,18.6365,80.54,80.49,18.632]
[1647027686635,28.8903,80.549,80.5,6.47650539]
[1647027686838,22.6803,80.549,80.5,6.47650539]
[1647027687034,22.6803,80.549,80.492,23.2767]
[1647027687437,22.6803,80.549,80.5,6.47575681]
[1647027688036,18.6322,80.54,80.501,23.4446]
[1647027699748,22.6803,80.549,80.501,23.4446]
[1647027699949,6.208,80.568,80.501,23.4446]
[1647027700150,22.9391,80.567,80.501,23.4446]
[1647027700349,22.9391,80.567,80.502,24.08415473]
[1647027701353,18.6276,80.56,80.502,24.08415473]
[1647027703054,18.6276,80.56,80.501,23.4446]
[1647027703255,6.208,80.559,80.501,23.4446]
[1647027705259,23.1002,80.558,80.501,23.4446]
[1647027707062,18.63,80.55,80.501,23.4446]
[1647027711289,6.208,80.549,80.501,23.4446]
[1647027711490,18.6322,80.54,80.501,23.4446]
[1647027715096,18.6306,80.55,80.501,23.4446]
[1647027717701,23.1002,80.558,80.51,18.6276]
[1647027717899,23.1002,80.558,80.511,51.17307921]
[1647027718098,23.1002,80.558,80.512,23.6654]
[1647027718899,23.1002,80.558,80.52,18.6256]
[1647027719399,23.1002,80.558,80.521,23.6654]
[1647027720403,18.6266,80.57,80.521,23.6654]
[1647027720604,47.2739,80.569,80.521,23.6654]
[1647027721003,141.68128114,80.58,80.521,23.6654]
[1647027721202,0.04025583,92.684,80.521,29.9654]
[1647027721203,26.13917526,80.579,80.521,29.9654]
[1647027721402,1.67917526,80.583,80.521,29.9654]
[1647027721602,6.207,80.582,80.521,54.04955473]
[1647027721802,6.207,80.584,80.521,72.93735473]
[1647027722004,24.46,80.583,80.531,46.38268813]
[1647027722203,24.46,80.583,80.532,23.3496]
[1647027723205,6.206,80.586,80.54,18.6207]
[1647027723405,1.67917526,80.595,80.541,74.0]
[1647027723606,1.67917526,80.614,80.545,74.0]
[1647027723805,1.67917526,80.622,80.545,74.0]
[1647027724004,1.67917526,80.625,80.547,74.0]
[1647027724202,1.67917526,80.627,80.551,74.0]
[1647027724403,25.25397526,80.629,80.571,58.39891934]
[1647027724603,25.25397526,80.629,80.572,23.7034]
[1647027724803,23.5748,80.629,80.572,23.7034]
[1647027725306,1.67917526,80.638,80.573,74.0]
[1647027726103,18.6114,80.63,80.58,18.6114]
[1647027726303,6.203,80.629,80.58,18.6114]
[1647027727306,6.203,80.629,80.562,23.5729]
[1647027727307,18.614,80.62,80.581,24.3457]
[1647027729307,18.114,80.62,80.581,24.3457]
[1647027731111,24.9438,80.629,80.581,24.3457]
[1647027736040,18.6098,80.64,80.59,18.6102]
[1647027736240,6.202,80.639,80.591,24.2825]
[1647027738943,18.6098,80.64,80.591,24.2825]
[1647027739144,22.9752,80.647,80.6,18.6079]
[1647027739345,22.9752,80.647,80.601,24.1964]
[1647027739944,24.83,80.659,80.601,24.1964]
[1647027740146,22.5057,80.658,80.601,48.28055473]
[1647027740545,18.6036,80.67,80.61,18.6041]
[1647027740755,6.2,80.669,80.611,71.58406812]
[1647027741447,28.7057,80.669,80.611,71.58406812]
[1647027741648,22.5057,80.669,80.611,71.58406812]
[1647027742046,22.5057,80.669,80.612,24.08415473]
[1647027743847,18.5984,80.69,80.62,18.6026]
[1647027744048,29.3992,80.689,80.62,18.6026]
[1647027744247,29.3992,80.689,80.621,74.2096343]
[1647027744447,29.3992,80.689,80.621,79.2896343]
[1647027744746,6.199,80.698,80.622,74.0]
[1647027744947,6.199,80.698,80.623,5.47717859]
[1647027745149,6.199,80.698,80.625,74.0]
[1647027745349,6.199,80.698,80.64,18.5941]
[1647027745549,29.3992,80.698,80.642,56.57862309]
[1647027746552,23.2002,80.698,80.641,23.4686]
[1647027747049,6.198,80.697,80.641,23.4686]
[1647027747552,18.5977,80.69,80.641,23.4686]
[1647027754158,123.3,80.689,80.611,3.04447957]
[1647027754360,123.3,80.669,80.611,26.27947957]
[1647027754558,22.6927,80.668,80.611,23.235]
[1647027755361,18.6078,80.66,80.611,23.235]
[1647027757060,22.6927,80.668,80.611,23.235]
[1647027757660,6.2,80.667,80.611,23.235]
[1647027757861,22.6927,80.668,80.62,18.6022]
[1647027758061,22.6927,80.668,80.621,23.8626]
[1647027767271,24.37187526,80.668,80.621,23.8626]
[1647027768174,1.67917526,80.665,80.621,23.8626]
[1647027768975,1.67917526,80.663,80.621,23.8626]
[1647027769373,1.67917526,80.662,80.621,23.8626]
[1647027770372,1.67917526,80.661,80.621,23.8626]
[1647027771274,1.67917526,80.663,80.621,23.8626]
[1647027771874,1.67917526,80.662,80.621,23.8626]
[1647027772276,1.67917526,80.664,80.621,23.8626]
[1647027772476,22.6927,80.668,80.621,23.8626]
[1647027773880,1.67917526,80.671,80.621,23.8626]
[1647027774081,1.67917526,80.672,80.63,18.5997]
[1647027774279,1.67917526,80.674,80.63,18.5997]
[1647027774879,1.67917526,80.674,80.631,23.8477]
[1647027775079,1.67917526,80.673,80.631,23.8477]
[1647027776281,1.67917526,80.672,80.631,23.8477]
[1647027778907,1.67917526,80.671,80.631,23.8477]
[1647027779508,1.67917526,80.67,80.631,23.8477]
[1647027780113,1.67917526,80.669,80.631,23.8477]
[1647027780509,1.67917526,80.67,80.631,23.8477]
[1647027780808,24.0697,80.679,80.631,23.8477]
[1647027780809,1.67917526,80.669,80.631,23.8477]
[1647027782014,1.67917526,80.669,80.64,18.5975]
[1647027782210,30.2687,80.679,80.64,18.5975]
[1647027782211,1.67917526,80.67,80.64,18.5975]
[1647027782416,1.67917526,80.671,80.64,18.5975]
[1647027782912,1.67917526,80.67,80.641,24.2001]
[1647027783112,1.67917526,80.671,80.641,24.2001]
[1647027784516,1.67917526,80.67,80.641,24.2001]
[1647027786416,1.67917526,80.679,80.651,56.97954812]
[1647027786616,1.67917526,80.691,80.652,22.9643]
[1647027786816,1.67917526,80.692,80.652,22.9643]
[1647027787020,1.67917526,80.697,80.653,30.08838211]
[1647027787215,1.67917526,80.698,80.653,30.08838211]
[1647027787416,1.67917526,80.698,80.66,18.5892]
[1647027787615,1.67917526,80.698,80.661,22.9643]
[1647027788116,1.67917526,80.7,80.661,22.9643]
[1647027788916,1.67917526,80.702,80.661,22.9643]
[1647027789621,1.67917526,80.701,80.661,22.9643]
[1647027789819,1.67917526,80.703,80.661,22.9643]
[1647027790018,24.7768,80.709,80.661,41.2787]
[1647027790019,1.67917526,80.702,80.661,41.2787]
[1647027790219,1.67917526,80.7,80.661,22.9643]
[1647027790419,1.67917526,80.699,80.661,22.9643]
[1647027791323,1.67917526,80.7,80.661,22.9643]
[1647027791820,20.27477526,80.7,80.661,22.9643]
[1647027792022,1.67917526,80.696,80.661,22.9643]
[1647027792229,7.27917526,80.696,80.661,22.9643]
[1647027792421,1.67917526,80.695,80.661,22.9643]
[1647027793024,6.197,80.694,80.661,22.9643]
[1647027793322,18.6011,80.69,80.661,22.9643]
[1647027795355,18.6011,80.69,80.64,24.0095]
[1647027795524,18.6013,80.68,80.641,24.7029]
[1647027799729,20.28047526,80.68,80.641,24.7029]
[1647027800429,1.67917526,80.68,80.641,24.7029]
[1647027801333,1.67917526,80.681,80.628,6.198]
[1647027801630,1.67917526,80.68,80.62,29.2597]
[1647027802032,1.67917526,80.679,80.621,30.08838211]
[1647027802233,1.67917526,80.679,80.63,18.5993]
[1647027802433,1.67917526,80.679,80.631,29.2597]
[1647027802632,1.67917526,80.682,80.631,29.2597]
[1647027802888,1.67917526,80.682,80.631,59.34808211]
[1647027803087,1.67917526,80.682,80.632,30.08838211]
[1647027803285,1.67917526,80.682,80.641,53.94440356]
[1647027803488,1.67917526,80.683,80.642,24.8103]
[1647027803686,1.67917526,80.683,80.643,6.198]
[1647027804694,1.67917526,80.682,80.643,6.198]
[1647027805290,22.81764653,80.689,80.643,6.198]
[1647027806096,22.81764653,80.689,80.643,25.1817]
[1647027808613,22.81764653,80.689,80.65,18.595]
[1647027809014,22.81764653,80.689,80.651,24.8256]
[1647027811018,6.198,80.699,80.651,24.8256]
[1647027811420,6.197,80.708,80.66,18.5925]
[1647027811617,31.1264,80.708,80.661,24.2842]
[1647027813019,17.28217832,80.707,80.661,24.2842]
[1647027813222,18.5952,80.7,80.661,24.2842]
[1647027813418,6.197,80.699,80.661,24.2842]
[1647027825435,18.5952,80.7,80.661,24.2842]
[1647027831244,24.9294,80.708,80.661,24.2842]
[1647027831739,17.30748252,80.707,80.661,24.2842]
[1647027832867,17.30748252,80.707,80.662,6.197]
[1647027833067,24.9294,80.708,80.662,6.197]
[1647027836477,31.1254,80.708,80.662,6.197]
[1647027836678,23.51734417,80.707,80.662,6.197]
[1647027837072,6.196,80.707,80.662,6.197]
[1647027837675,6.196,80.707,80.661,48.6248]
[1647027838672,17.32777227,80.706,80.661,48.6248]
[1647027839573,17.32777227,80.706,80.661,42.4288]
[1647027841173,18.5955,80.7,80.661,24.2842]
[1647027841374,123.3,80.699,80.646,6.197]
[1647027841577,123.3,80.697,80.635,29.0634]
[1647027841785,123.3,80.695,80.616,6.197]
[1647027841977,12.9617673,80.696,80.614,23.7331]
[1647027841978,126.66433588,80.689,80.614,23.7331]
[1647027842175,3.36433588,80.686,80.634,5.39457579]
[1647027842376,123.3,80.679,80.614,23.7331]
[1647027842577,123.3,80.677,80.592,6.198]
[1647027842880,123.3,80.669,80.595,30.08838211]
[1647027843075,6.2,80.668,80.596,6.2]
[1647027843283,29.7321,80.668,80.596,6.2]
[1647027843476,29.7321,80.668,80.597,30.08838211]
[1647027843776,29.7321,80.668,80.598,6.2]
[1647027844178,18.6076,80.66,80.6,18.6061]
[1647027844384,6.2,80.659,80.601,6.2]
[1647027844578,6.2,80.659,80.602,24.6757]
[1647027844879,6.2,80.659,80.586,30.08838211]
[1647027844880,129.5,80.659,80.586,30.08838211]
[1647027845080,123.3,80.657,80.586,30.08838211]
[1647027845284,123.3,80.649,80.578,6.2]
[1647027845478,123.3,80.647,80.576,15.73136493]
[1647027845679,123.3,80.645,80.576,15.73136493]
[1647027846079,123.3,80.643,80.576,15.73136493]
[1647027846279,123.3,80.629,80.576,15.73136493]
[1647027846483,4.82,80.643,80.576,15.73136493]
[1647027846484,123.12,80.627,80.576,15.73136493]
[1647027846888,6.203,80.626,80.576,15.73136493]
[1647027847582,18.6171,80.62,80.576,15.73136493]
[1647027848183,6.203,80.636,80.576,15.73136493]
[1647027848382,6.203,80.654,80.577,34.06877957]
[1647027848587,18.6077,80.65,80.58,18.6104]
[1647027848782,6.202,80.649,80.581,6.202]
[1647027848983,6.202,80.649,80.581,21.93336493]
[1647027849184,24.7597,80.648,80.581,39.07486168]
[1647027849386,6.202,80.647,80.582,29.82838211]
[1647027849582,6.202,80.647,80.583,6.202]
[1647027849986,6.202,80.647,80.584,29.82838211]
[1647027850185,18.6102,80.64,80.585,6.202]
[1647027850384,18.6102,80.64,80.586,23.0462]
[1647027850587,18.6102,80.64,80.587,6.202]
[1647027850785,18.6102,80.64,80.587,36.03038211]
[1647027850986,18.6102,80.64,80.59,18.6084]
[1647027851188,18.6102,80.64,80.591,6.202]
[1647027851588,18.6102,80.64,80.589,6.202]
[1647027852092,18.6102,80.64,80.589,36.03038211]
[1647027852889,24.7597,80.648,80.589,36.03038211]
[1647027853298,24.7597,80.648,80.59,18.6082]
[1647027853590,24.7597,80.648,80.591,15.73136493]
[1647027853790,24.7597,80.648,80.591,29.82838211]
[1647027853992,24.7597,80.648,80.592,23.8635]
[1647027854391,24.7597,80.648,80.6,18.6056]
[1647027854594,24.7597,80.648,80.601,23.8635]
[1647027854791,24.7597,80.648,80.601,53.69188211]
[1647027854992,24.7597,80.648,80.602,29.82838211]
[1647027857695,18.6053,80.66,80.602,29.82838211]
[1647027857896,6.2,80.659,80.602,29.82838211]
[1647027858499,18.6053,80.66,80.602,29.82838211]
[1647027859735,24.1552,80.669,80.61,18.6036]
[1647027859937,6.2,80.668,80.612,46.4745442]
[1647027860138,147.9243,80.689,80.613,74.0]
[1647027860139,6.2,80.682,80.613,74.0]
[1647027860336,24.6243,80.689,80.613,74.0]
[1647027860337,30.8569,80.686,80.613,114.0103305]
[1647027860542,30.8569,80.686,80.614,4.80340225]
[1647027860736,30.8569,80.686,80.615,74.0]
[1647027860936,30.8569,80.686,80.615,131.2569305]
[1647027861137,30.8569,80.686,80.621,74.0]
[1647027861737,30.8569,80.686,80.623,74.0]
[1647027862340,30.8569,80.686,80.63,18.5986]
[1647027862742,30.8569,80.686,80.631,23.757]
[1647027863340,18.6003,80.68,80.631,23.757]
[1647027866043,120.04966501,80.68,80.631,23.757]
[1647027869848,123.3,80.679,80.617,3.04447957]
[1647027870050,18.608,80.66,80.614,22.5101]
[1647027872453,123.3,80.659,80.59,31.23238211]
[1647027872653,123.3,80.639,80.59,31.23238211]
[1647027872854,123.3,80.639,80.577,18.8893]
[1647027873252,129.502,80.638,80.577,18.8893]
[1647027873454,129.502,80.638,80.578,24.5115]
[1647027873653,129.502,80.638,80.569,30.45238211]
[1647027873854,129.502,80.638,80.55,6.47573918]
[1647027873855,123.3,80.629,80.56,28.16177457]
[1647027874053,123.3,80.627,80.56,28.16177457]
[1647027874254,123.3,80.619,80.55,6.47573918]
[1647027874453,123.3,80.617,80.55,6.47573918]
[1647027874655,123.3,80.615,80.55,6.47573918]
[1647027874853,123.3,80.613,80.55,6.47573918]
[1647027875054,123.3,80.611,80.55,6.47573918]
[1647027875256,18.6205,80.6,80.55,6.47573918]
[1647027875456,24.8605,80.6,80.545,23.3889]
[1647027875956,6.204,80.599,80.545,23.3889]
[1647027876654,123.3,80.598,80.545,23.3889]
[1647027876855,18.621,80.59,80.545,23.3889]
[1647027877654,123.3,80.589,80.529,24.2348]
[1647027877880,123.3,80.579,80.515,23.8461]
[1647027878080,123.3,80.577,80.515,23.8461]
[1647027878483,123.3,80.575,80.515,23.8461]
[1647027878686,123.3,80.573,80.5,27.11307957]
[1647027878882,123.3,80.571,80.5,27.11307957]
[1647027879083,123.3,80.559,80.5,27.11307957]
[1647027879284,129.19,80.559,80.501,26.73550124]